bitfinex/quotes_SOLUSD_20241111
["timestamp","ask_amount","ask_price","bid_price","bid_amount"]
[1731309832962,39.17569161,206.97,206.9,17.57489161]
[1731309832963,5.75869824,206.96,206.9,17.57489161]
[1731309833171,3.59919937,206.95,206.92,17.57489161]
[1731309833352,17.57489161,206.97,206.9,17.57489161]
[1731309833550,3.59918855,206.96,206.9,17.57489161]
[1731309833772,3.59912005,206.95,206.9,17.57489161]
[1731309833973,3.59912005,206.94,206.9,17.57489161]
[1731309834274,5.75870168,206.96,206.9,17.57489161]
[1731309834479,5.75870168,206.96,206.84,6.0324]
[1731309834480,3.59668934,206.95,206.91,17.57489161]
[1731309834658,3.59668934,206.94,206.91,17.57489161]
[1731309834848,5.75870168,206.96,206.91,17.57489161]
[1731309835052,3.59682896,206.95,206.94,17.57489161]
[1731309835252,5.75870168,206.96,206.94,17.57489161]
[1731309838254,5.75870168,206.96,206.88,17.57489161]
[1731309838456,5.75870168,206.96,206.95,17.57489161]
[1731309840060,5.75870168,206.96,206.93,17.57489161]
[1731309840265,5.75870168,206.96,206.91,17.57489161]
[1731309841088,5.75870168,206.96,206.9,17.57489161]
[1731309841294,3.59935747,206.95,206.9,17.57489161]
[1731309841497,5.75870168,206.96,206.9,17.57489161]
[1731309841678,3.59717481,206.95,206.88,17.57489161]
[1731309841985,9.3526545,206.95,206.91,17.57489161]
[1731309842167,5.75870168,206.96,206.91,17.57489161]
[1731309842562,5.75870168,206.96,206.93,17.57489161]
[1731309842768,5.75870168,206.96,206.94,17.57489161]
[1731309842966,5.75870168,206.96,206.95,17.57489161]
[1731309843572,5.75870168,206.96,206.95,37.57489161]
[1731309844587,17.57489161,207.06,206.95,37.57489161]
[1731309844771,17.57489161,207.06,206.99,17.57489161]
[1731309844972,17.57489161,207.07,206.99,17.57489161]
[1731309845192,0.12549,207.06,207.0,17.57489161]
[1731309845893,28.95549,207.06,207.0,17.57489161]
[1731309846267,46.53038161,207.06,206.98,17.57489161]
[1731309846694,46.53038161,207.06,206.99,17.57489161]
[1731309848596,22.8213,207.08,206.93,15.8269]
[1731309848800,12.2684,207.16,207.06,17.57489161]
[1731309848801,21.9593,207.14,207.06,17.57489161]
[1731309848971,3.58604885,207.13,207.06,17.57489161]
[1731309849175,17.57489161,207.13,207.06,17.57489161]
[1731309849770,46.40489161,207.13,207.06,17.57489161]
[1731309849967,46.40489161,207.13,207.05,17.57489161]
[1731309850174,21.9593,207.19,207.1,17.57489161]
[1731309850372,17.57489161,207.16,207.08,17.57489161]
[1731309851472,17.70038161,207.18,207.1,17.57489161]
[1731309851672,17.57489161,207.18,207.1,17.57489161]
[1731309852091,0.12549,207.17,207.1,17.57489161]
[1731309852796,21.9593,207.19,207.12,17.57489161]
[1731309853191,17.57489161,207.24,207.16,17.57489161]
[1731309853498,23.1787,207.25,207.2,17.57489161]
[1731309853678,17.57489161,207.3,207.22,17.57489161]
[1731309854091,23.1787,207.31,207.24,17.57489161]
[1731309854392,17.57489161,207.28,207.22,17.57489161]
[1731309855380,17.57489161,207.28,207.2,17.57489161]
[1731309855578,17.57489161,207.26,207.18,17.57489161]
[1731309855979,17.57489161,207.22,207.14,17.57489161]
[1731309857797,17.57489161,207.24,207.16,17.57489161]
[1731309857992,17.57489161,207.26,207.18,17.57489161]
[1731309858377,0.12549,207.25,207.18,17.57489161]
[1731309858590,17.57489161,207.26,207.18,17.57489161]
[1731309859400,17.57489161,207.22,207.14,17.57489161]
[1731309863189,0.12549,207.25,207.14,17.57489161]
[1731309863190,17.57489161,207.24,207.14,17.57489161]
[1731309863592,17.57489161,207.24,207.16,17.57489161]
[1731309864202,17.57489161,207.28,207.2,17.57489161]
[1731309865104,17.57489161,207.26,207.18,17.57489161]
[1731309865801,28.83,207.25,207.18,17.57489161]
[1731309866190,28.83,207.25,207.16,17.57489161]
[1731309866191,17.57489161,207.24,207.16,17.57489161]
[1731309867092,0.12549,207.27,207.09,23.776884]
[1731309867093,17.57489161,207.27,207.2,17.57489161]
[1731309867407,46.40489161,207.29,207.22,17.57489161]
[1731309869094,28.83,207.3,207.22,17.57489161]
[1731309869295,23.1787,207.31,207.24,17.57489161]
[1731309869616,23.1787,207.31,207.28,17.57489161]
[1731309869796,22.883,207.36,207.28,17.57489161]
[1731309869995,22.883,207.36,207.3,17.57489161]
[1731309870193,6.5537,207.36,207.32,17.57489161]
[1731309870794,6.5537,207.36,207.3,17.57489161]
[1731309870992,17.57489161,207.35,207.28,17.57489161]
[1731309872603,17.57489161,207.35,207.26,17.57489161]
[1731309875524,6.5537,207.36,207.28,17.57489161]
[1731309875719,17.57489161,207.35,207.26,17.57489161]
[1731309876223,17.57489161,207.33,207.26,17.57489161]
[1731309877209,17.57489161,207.33,207.24,17.57489161]
[1731309877519,17.57489161,207.31,207.24,17.57489161]
[1731309877717,17.57489161,207.31,206.99,70.0]
[1731309877718,17.57489161,207.29,207.2,17.57489161]
[1731309879320,17.57489161,207.31,207.22,17.57489161]
[1731309879624,15.5116,207.32,207.24,17.57489161]
[1731309881216,17.57489161,207.29,207.22,17.57489161]
[1731309881420,17.57489161,207.29,207.2,17.57489161]
[1731309881608,17.57489161,207.27,207.2,17.57489161]
[1731309881807,17.57489161,207.23,207.16,17.57489161]
[1731309882504,6.1157,207.26,207.18,17.57489161]
[1731309882810,6.1157,207.26,207.2,17.57489161]
[1731309884406,6.1157,207.26,207.18,17.57489161]
[1731309884622,17.57489161,207.25,207.18,17.57489161]
[1731309884923,17.57489161,207.23,207.16,17.57489161]
[1731309885327,17.57489161,207.25,207.16,17.57489161]
[1731309886723,33.61369161,207.22,207.13,20.0]
[1731309888835,33.61369161,207.22,207.14,17.57489161]
[1731309890107,33.61369161,207.22,207.09,20.0]
[1731309890108,16.0388,207.22,207.16,17.57489161]
[1731309895837,33.61369161,207.22,207.15,20.0]
[1731309898129,17.57489161,207.2,207.13,20.0]
[1731309898634,17.57489161,207.18,207.1,17.57489161]
[1731309898937,16.0388,207.22,207.12,17.57489161]
[1731309898938,17.57489161,207.2,207.12,17.57489161]
[1731309899319,17.57489161,207.16,207.08,17.57489161]
[1731309899919,17.57489161,207.16,207.03,16.4317]
[1731309900133,17.57489161,207.16,207.07,17.57489161]
[1731309900337,17.57489161,207.14,207.05,17.57489161]
[1731309900547,17.57489161,207.1,207.02,17.57489161]
[1731309901041,17.57489161,207.06,206.98,17.57489161]
[1731309901538,6.0756,207.07,207.0,17.57489161]
[1731309901745,6.0756,207.07,207.02,17.57489161]
[1731309902118,21.5465,207.12,207.06,17.57489161]
[1731309902718,21.5465,207.12,207.08,17.57489161]
[1731309902938,17.57489161,207.16,207.09,20.0]
[1731309903249,23.70729161,207.18,207.1,17.57489161]
[1731309903931,23.70729161,207.18,207.11,20.0]
[1731309904132,17.57489161,207.14,207.06,17.57489161]
[1731309904328,17.57489161,207.12,207.06,17.57489161]
[1731309904520,17.57489161,207.12,207.02,23.776884]
[1731309904521,17.57489161,207.1,207.03,20.0]
[1731309904721,17.57489161,207.1,207.02,17.57489161]
[1731309904926,17.57489161,207.08,207.0,17.57489161]
[1731309905634,17.57489161,207.06,206.98,17.57489161]
[1731309906741,17.57489161,207.08,207.0,17.57489161]
[1731309906953,17.57489161,207.06,206.98,17.57489161]
[1731309907124,17.57489161,207.08,206.99,20.0]
[1731309907650,17.57489161,207.04,206.97,20.0]
[1731309908144,17.57489161,207.04,206.94,17.57489161]
[1731309908447,17.57489161,207.02,206.94,17.57489161]
[1731309909334,17.57489161,207.02,206.95,20.0]
[1731309909850,17.57489161,207.06,206.96,17.57489161]
[1731309910047,17.57489161,207.08,207.0,17.57489161]
[1731309910840,17.57489161,207.08,206.95,20.0]
[1731309910841,17.57489161,207.04,206.89,2.1261543]
[1731309911023,27.1405,207.09,206.89,2.1261543]
[1731309911024,17.57489161,207.02,206.93,17.57489161]
[1731309911430,17.57489161,207.02,206.87,0.1]
[1731309911431,17.57489161,207.02,206.95,17.57489161]
[1731309911853,17.57489161,207.04,206.95,17.57489161]
[1731309912075,17.57489161,207.04,206.97,17.57489161]
[1731309912343,17.57489161,207.08,206.99,17.57489161]
[1731309912547,17.57489161,207.08,206.92,0.2]
[1731309912548,17.57489161,207.08,207.01,17.57489161]
[1731309912926,22.3117,207.09,207.03,17.57489161]
[1731309913633,22.3117,207.09,206.91,5.03678175]
[1731309913634,17.57489161,207.08,207.0,20.0]
[1731309917254,22.3117,207.09,207.02,20.0]
[1731309917457,22.3117,207.09,207.03,17.57489161]
[1731309917834,28.94,207.15,207.07,17.57489161]
[1731309917835,33.58349161,207.14,207.07,17.57489161]
[1731309918034,33.58349161,207.14,207.05,17.57489161]
[1731309919046,33.58349161,207.14,207.07,17.57489161]
[1731309919749,33.58349161,207.14,206.99,2.19147312]
[1731309919750,33.58349161,207.14,207.06,20.0]
[1731309920269,17.57489161,207.08,207.01,17.57489161]
[1731309920748,17.57489161,207.06,206.99,17.57489161]
[1731309921645,17.57489161,207.06,206.98,20.0]
[1731309922043,46.30546561,207.12,206.91,20.83172044]
[1731309922044,17.57489161,207.02,206.91,20.83172044]
[1731309922243,22.2635,207.05,206.91,20.83172044]
[1731309922244,17.57489161,207.0,206.92,17.57489161]
[1731309923140,17.57489161,207.0,206.87,5.03834507]
[1731309923141,17.57489161,207.0,206.93,17.57489161]
[1731309924239,17.57489161,207.01,206.94,17.57489161]
[1731309924436,17.57489161,207.02,206.94,17.57489161]
[1731309924761,17.57489161,207.04,206.96,17.57489161]
[1731309924957,17.57489161,207.03,206.97,0.06480988]
[1731309925147,17.57489161,207.03,206.96,17.57489161]
[1731309925463,22.2635,207.05,206.99,17.57489161]
[1731309925752,22.2635,207.05,206.98,17.57489161]
[1731309927051,17.57489161,207.04,206.96,17.57489161]
[1731309927241,17.57489161,207.04,206.97,0.06480988]
[1731309927447,22.2635,207.05,206.98,17.57489161]
[1731309927662,17.57489161,207.04,206.96,17.57489161]
[1731309929043,22.2635,207.05,206.9,2.19410331]
[1731309929044,22.2635,207.05,206.98,17.57489161]
[1731309929747,22.2635,207.05,207.0,17.57489161]
[1731309930250,22.2635,207.05,207.02,17.57489161]
[1731309930960,17.57489161,207.1,206.92,6.1489]
[1731309930961,22.5099,207.1,207.04,17.57489161]
[1731309932553,40.08479161,207.1,207.02,17.57489161]
[1731309932970,40.02001781,207.1,207.02,17.57489161]
[1731309933149,40.02001781,207.1,207.01,20.0]
[1731309934252,40.02001781,207.1,207.02,17.57489161]
[1731309934661,22.4451262,207.1,207.04,17.57489161]
[1731309934864,22.4451262,207.1,207.06,17.57489161]
[1731309936072,22.4451262,207.1,207.07,0.06225128]
[1731309936267,22.4451262,207.1,207.06,17.57489161]
[1731309939178,6.0637,207.15,207.08,17.57489161]
[1731309939474,6.0637,207.15,207.12,17.57489161]
[1731309940057,15.387,207.16,207.12,17.57489161]
[1731309940271,6.0637,207.2,207.14,17.57489161]
[1731309940873,6.0637,207.2,207.07,0.2]
[1731309940874,6.0637,207.2,207.16,17.57489161]
[1731309941174,6.0637,207.2,207.14,17.57489161]
[1731309941352,6.0637,207.2,207.13,20.0]
[1731309942466,6.0637,207.2,207.14,17.57489161]
[1731309943070,6.0637,207.2,207.16,17.57489161]
[1731309943571,15.387,207.21,207.17,20.0]
[1731309943778,15.387,207.21,207.18,17.57489161]
[1731309943953,15.387,207.21,207.16,17.57489161]
[1731309946058,15.387,207.21,207.18,17.57489161]
[1731309946356,6.4062,207.25,207.18,17.57489161]
[1731309946977,6.4062,207.25,207.2,17.57489161]
[1731309947577,15.6429,207.26,207.24,17.57489161]
[1731309947757,6.1861,207.3,207.24,17.57489161]
[1731309948557,6.1861,207.3,207.22,17.57489161]
[1731309949250,6.1861,207.3,207.12,23.95669161]
[1731309949251,17.57489161,207.27,207.2,17.57489161]
[1731309949455,17.57489161,207.27,207.18,17.57489161]
[1731309950084,17.57489161,207.23,207.14,17.57489161]
[1731309950261,39.14879161,207.21,207.12,17.57489161]
[1731309951559,39.14879161,207.21,207.13,20.0]
[1731309957060,39.14879161,207.21,207.12,17.57489161]
[1731309957061,17.57489161,207.19,207.12,17.57489161]
[1731309957260,17.57489161,207.19,207.1,17.57489161]
[1731309957471,17.57489161,207.19,207.06,0.12549]
[1731309957688,17.57489161,207.19,207.12,17.57489161]
[1731309959277,17.57489161,207.19,207.11,20.0]
[1731309960587,17.57489161,207.17,207.08,17.57489161]
[1731309960881,17.57489161,207.19,207.1,17.57489161]
[1731309961191,39.14879161,207.21,207.12,17.57489161]
[1731309962099,39.14879161,207.21,207.14,17.57489161]
[1731309962291,21.5739,207.21,207.14,17.57489161]
[1731309962871,21.5739,207.21,207.03,23.776884]
[1731309962872,21.5739,207.21,207.18,17.57489161]
[1731309963199,21.5739,207.21,207.17,20.0]
[1731309963970,21.5739,207.21,207.14,17.57489161]
[1731309964282,39.14879161,207.21,207.13,20.0]
[1731309964784,17.57489161,207.17,207.1,17.57489161]
[1731309964984,17.57489161,207.17,207.08,17.57489161]
[1731309965295,15.2011,207.12,207.04,17.57489161]
[1731309965593,6.0062,207.1,207.02,17.57489161]
[1731309965894,17.57489161,207.09,207.02,17.57489161]
[1731309966688,15.7445,207.02,206.96,17.57489161]
[1731309966887,15.7445,207.02,206.94,17.57489161]
[1731309967696,15.7445,207.02,206.96,17.57489161]
[1731309968495,17.57489161,206.97,206.84,15.929]
[1731309968682,17.57489161,206.97,206.89,17.57489161]
[1731309968882,17.57489161,206.95,206.87,17.57489161]
[1731309969584,17.57489161,206.97,206.91,17.57489161]
[1731309971778,17.57489161,206.97,206.92,0.06229641]
[1731309972001,17.57489161,206.97,206.91,17.57489161]
[1731309972183,17.57489161,206.97,206.9,20.0]
[1731309972389,17.57489161,206.97,206.89,17.57489161]
[1731309977383,17.57489161,206.97,206.9,0.06230243]
[1731309977578,17.57489161,206.97,206.89,17.57489161]
[1731309979997,11.3391,207.01,206.85,17.57489161]
[1731309979998,6.6098,206.92,206.85,17.57489161]
[1731309982384,6.6098,206.92,206.87,17.57489161]
[1731309982700,6.6098,206.92,206.89,17.57489161]
[1731309983210,6.6098,206.92,206.91,17.57489161]
[1731309983595,15.5095,206.96,206.91,17.57489161]
[1731309983987,15.5095,206.96,206.93,17.57489161]
[1731309984684,15.5095,206.96,206.88,17.67489161]
[1731309984886,15.8525,207.01,206.95,17.57489161]
[1731309985194,15.8525,207.01,206.97,17.57489161]
[1731309985404,15.8525,207.01,206.95,17.57489161]
[1731309985700,15.8525,207.01,206.97,17.57489161]
[1731309986087,15.8525,207.01,206.95,17.57489161]
[1731309986303,15.8525,207.01,206.96,20.0]
[1731309987710,15.8525,207.01,206.97,17.57489161]
[1731309988487,15.8525,207.01,206.98,0.06227835]
[1731309988693,15.8525,207.01,206.93,17.57489161]
[1731309988910,17.57489161,207.0,206.91,17.57489161]
[1731309989501,17.57489161,206.98,206.91,17.57489161]
[1731309989693,17.57489161,206.96,206.89,17.57489161]
[1731309992790,17.57489161,206.98,206.91,17.57489161]
[1731309995706,17.57489161,206.98,206.82,0.1]
[1731309995707,17.57489161,206.98,206.89,20.0]
[1731309995888,17.57489161,206.98,206.9,17.63719404]
[1731309996217,17.57489161,206.98,206.9,17.57489161]
[1731309998021,28.94,207.0,206.86,2.08672564]
[1731309998022,46.51489161,207.0,206.92,17.57489161]
[1731309999804,15.8525,207.01,206.92,17.57489161]
[1731310000105,15.8525,207.01,206.94,17.57489161]
[1731310000512,15.8525,207.01,206.93,20.0]
[1731310000513,17.57489161,207.0,206.93,20.0]
[1731310000711,28.94,206.99,206.93,20.0]
[1731310000887,17.57489161,207.0,206.92,17.57489161]
[1731310001094,15.8525,207.01,206.94,17.57489161]
[1731310003414,15.8525,207.01,206.96,17.57489161]
[1731310004204,15.8525,207.01,206.98,17.57489161]
[1731310004402,15.0568,207.06,207.0,17.57489161]
[1731310004801,15.0568,207.06,206.9,23.902374]
[1731310004802,32.63169161,207.06,206.98,17.57489161]
[1731310006920,17.57489161,207.04,206.96,17.57489161]
[1731310007221,17.57489161,207.02,206.95,20.0]
[1731310007608,17.57489161,207.04,206.96,17.57489161]
[1731310008195,17.57489161,207.02,206.94,17.57489161]
[1731310008399,21.5527,206.99,206.92,17.57489161]
[1731310008713,17.57489161,206.98,206.9,17.57489161]
[1731310009423,17.57489161,206.96,206.88,17.57489161]
[1731310010219,21.5527,206.99,206.81,8.49349255]
[1731310010220,21.5527,206.99,206.92,17.57489161]
[1731310011233,17.57489161,206.98,206.9,17.57489161]
[1731310011522,17.57489161,206.96,206.88,17.57489161]
[1731310011705,17.57489161,206.9,206.79,2.09497323]
[1731310011900,23.74959161,206.9,206.82,17.57489161]
[1731310014403,6.1747,206.9,206.84,17.57489161]
[1731310014726,6.1747,206.9,206.86,17.57489161]
[1731310015201,6.1747,206.9,206.84,17.57489161]
[1731310015401,6.1747,206.9,206.85,20.0]
[1731310015616,6.1747,206.9,206.86,17.57489161]
[1731310016632,6.1747,206.9,206.85,20.0]
[1731310017319,6.1747,206.9,206.77,20.0]
[1731310017320,6.1747,206.9,206.86,17.57489161]
[1731310018833,6.1747,206.9,206.87,0.03229158]
[1731310019005,6.1747,206.9,206.87,0.03229206]
[1731310019206,6.1747,206.9,206.86,17.57489161]
[1731310021235,6.1747,206.9,206.87,0.03851693]
[1731310021402,6.1747,206.9,206.86,17.57489161]
[1731310022611,16.5809,206.91,206.88,17.57489161]
[1731310023214,16.5809,206.91,206.86,17.57489161]
[1731310023415,16.5809,206.91,206.84,17.57489161]
[1731310024031,16.5809,206.91,206.77,22.12656031]
[1731310024032,17.57489161,206.88,206.8,17.57489161]
[1731310025114,17.57489161,206.88,206.78,17.57489161]
[1731310025527,17.57489161,206.8,206.68,15.3269]
[1731310025716,17.57489161,206.8,206.64,17.674892]
[1731310025717,6.2711,206.79,206.72,17.57489161]
[1731310026118,17.57489161,206.78,206.7,17.57489161]
[1731310026534,6.2711,206.79,206.63,15.3269]
[1731310026535,6.2711,206.79,206.72,17.57489161]
[1731310027032,6.2711,206.79,206.74,17.57489161]
[1731310028215,6.2711,206.79,206.75,20.0]
[1731310028529,6.2711,206.79,206.76,17.57489161]
[1731310028732,16.3676,206.83,206.78,17.57489161]
[1731310029319,16.3676,206.83,206.8,17.57489161]
[1731310029521,16.3676,206.83,206.81,4.8353]
[1731310029723,15.832,206.88,206.82,17.57489161]
[1731310030448,15.832,206.88,206.82,17.61341785]
[1731310030615,15.832,206.88,206.82,17.57489161]
[1731310031018,15.832,206.88,206.81,4.8353]
[1731310031019,15.832,206.88,206.84,17.57489161]
[1731310031919,15.832,206.88,206.76,17.70038161]
[1731310031920,15.832,206.88,206.81,20.0]
[1731310032115,15.832,206.88,206.78,17.57489161]
[1731310032116,17.57489161,206.87,206.78,17.57489161]
[1731310033540,17.57489161,206.87,206.79,20.0]
[1731310033837,17.57489161,206.87,206.8,17.57489161]
[1731310034018,15.832,206.88,206.82,17.57489161]
[1731310034213,15.832,206.88,206.84,17.57489161]
[1731310035348,15.832,206.88,206.86,17.57489161]
[1731310035639,15.1416,206.93,206.87,20.0]
[1731310035848,15.1416,206.93,206.9,17.57489161]
[1731310036531,6.5217,206.94,206.9,17.57489161]
[1731310037334,6.5217,206.94,206.86,17.57489161]
[1731310037755,6.5217,206.94,206.84,17.57489161]
[1731310037756,17.57489161,206.91,206.84,17.57489161]
[1731310037934,17.57489161,206.91,206.82,17.57489161]
[1731310038328,17.57489161,206.91,206.76,17.57489161]
[1731310038329,17.57489161,206.91,206.84,17.57489161]
[1731310039045,17.57489161,206.93,206.86,17.57489161]
[1731310039340,6.5217,206.94,206.86,17.57489161]
[1731310039742,6.5217,206.94,206.88,17.57489161]
[1731310040245,6.5217,206.94,206.9,17.57489161]
[1731310040545,15.0128,206.98,206.92,17.57489161]
[1731310040729,15.0128,206.98,206.91,20.0]
[1731310040930,17.57489161,206.97,206.91,20.0]
[1731310041936,15.0128,206.98,206.92,17.57489161]
[1731310044527,15.0128,206.98,206.9,17.57489161]
[1731310044848,15.0128,206.98,206.88,17.57489161]
[1731310044849,17.57489161,206.97,206.88,17.57489161]
[1731310045754,28.94,206.96,206.9,17.57489161]
[1731310045952,15.0128,206.98,206.92,17.57489161]
[1731310046633,15.0128,206.98,206.93,20.0]
[1731310047649,15.0128,206.98,206.94,17.57489161]
[1731310050349,15.0128,206.98,206.96,17.57489161]
[1731310051242,15.0128,206.98,206.88,17.57489161]
[1731310051243,15.0128,206.98,206.94,17.57489161]
[1731310052556,15.0128,206.98,206.92,17.57489161]
[1731310053259,46.51489161,206.97,206.89,17.57489161]
[1731310053430,17.57489161,206.95,206.87,17.57489161]
[1731310053751,46.51489161,206.97,206.89,17.57489161]
[1731310059061,15.0128,206.98,206.93,17.57489161]
[1731310059852,15.0128,206.98,206.95,17.57489161]
[1731310060057,15.0128,206.98,206.88,17.57489161]
[1731310060241,6.5535,206.99,206.97,17.57489161]
[1731310060659,6.5535,206.99,206.89,0.12549]
[1731310060660,6.5535,206.99,206.95,17.57489161]
[1731310062152,6.5535,206.99,206.87,15.6121]
[1731310062153,6.5535,206.99,206.93,17.57489161]
[1731310062559,6.5535,206.99,206.95,17.57489161]
[1731310064540,6.5535,206.99,206.9,17.57489161]
[1731310064541,53.06839161,206.99,206.9,17.57489161]
[1731310066059,53.06839161,206.99,206.92,17.57489161]
[1731310066681,53.06839161,206.99,206.9,17.57489161]
[1731310067361,52.42980235,206.99,206.9,17.57489161]
[1731310067560,17.57489161,206.97,206.9,17.57489161]
[1731310068065,17.57489161,206.95,206.88,17.57489161]
[1731310068263,17.57489161,206.93,206.86,17.57489161]
[1731310068468,28.94,206.95,206.88,17.57489161]
[1731310068760,46.51489161,206.95,206.86,17.57489161]
[1731310069267,46.51489161,206.95,206.88,17.57489161]
[1731310070067,28.94,206.95,206.88,17.57489161]
[1731310071155,46.51489161,206.95,206.88,17.57489161]
[1731310072476,46.51489161,206.95,206.86,17.57489161]
[1731310073355,46.51489161,206.93,206.84,17.57489161]
[1731310074162,17.57489161,206.89,206.82,17.57489161]
[1731310074364,46.51489161,206.89,206.82,17.57489161]
[1731310074868,44.9858,206.88,206.8,17.57489161]
[1731310075049,17.57489161,206.85,206.76,17.57489161]
[1731310075371,17.57489161,206.83,206.74,17.57489161]
[1731310075972,17.57489161,206.83,206.76,17.57489161]
[1731310076157,6.2926,206.84,206.76,17.57489161]
[1731310076356,6.2926,206.84,206.8,17.57489161]
[1731310076547,23.86749161,206.84,206.76,17.57489161]
[1731310076769,17.57489161,206.82,206.74,17.57489161]
[1731310077166,15.3069,206.81,206.68,4.8383]
[1731310077495,17.57489161,206.8,206.72,17.57489161]
[1731310079473,17.57489161,206.78,206.73,4.8372]
[1731310079851,17.57489161,206.8,206.73,4.8372]
[1731310080765,15.3069,206.81,206.73,4.8372]
[1731310080766,15.3069,206.81,206.74,17.57489161]
[1731310080974,15.3069,206.81,206.73,4.8372]
[1731310081350,15.3069,206.81,206.74,17.57489161]
[1731310081747,15.3069,206.81,206.78,17.57489161]
[1731310081967,6.2926,206.84,206.8,17.57489161]
[1731310082172,6.2926,206.84,206.82,17.57489161]
[1731310082375,6.2926,206.84,206.8,17.57489161]
[1731310082962,6.2926,206.84,206.81,4.8353]
[1731310083760,15.6856,206.87,206.82,17.57489161]
[1731310083963,6.2068,206.9,206.86,17.57489161]
[1731310084475,17.57489161,206.88,206.81,4.8353]
[1731310084685,17.57489161,206.86,206.81,4.8353]
[1731310085000,17.57489161,206.84,206.76,17.57489161]
[1731310085679,28.94,206.83,206.76,17.57489161]
[1731310087359,28.94,206.83,206.77,4.8362]
[1731310087675,24.08479161,206.82,206.77,4.8362]
[1731310088261,6.5099,206.82,206.77,4.8362]
[1731310088867,24.08479161,206.82,206.77,4.8362]
[1731310089476,46.51489161,206.8,206.77,4.8362]
[1731310089674,46.51489161,206.8,206.73,4.8372]
[1731310089874,17.57489161,206.78,206.73,4.8372]
[1731310090575,17.57489161,206.78,206.7,17.57489161]
[1731310091868,17.57489161,206.76,206.68,17.57489161]
[1731310092463,17.57489161,206.78,206.7,17.57489161]
[1731310092870,17.57489161,206.78,206.71,4.8376]
[1731310097581,17.57489161,206.74,206.66,17.57489161]
[1731310098880,17.57489161,206.76,206.68,17.57489161]
[1731310099066,17.57489161,206.76,206.67,4.8386]
[1731310099067,35.4915,206.77,206.7,17.57489161]
[1731310100577,35.4915,206.77,206.71,4.8376]
[1731310102968,46.51489161,206.76,206.68,17.57489161]
[1731310103568,46.51489161,206.73,206.64,17.57489161]
[1731310104674,46.51489161,206.73,206.66,17.57489161]
[1731310104876,17.57489161,206.75,206.68,17.57489161]
[1731310105191,6.5515,206.77,206.71,17.57489161]
[1731310105478,6.5515,206.77,206.72,17.57489161]
[1731310106677,6.5515,206.77,206.73,4.8372]
[1731310108265,24.12639161,206.77,206.73,4.8372]
[1731310108468,28.94,206.72,206.56,5.01301396]
[1731310108759,57.65557561,206.75,206.55,16.5632]
[1731310108760,46.51489161,206.69,206.6,17.57489161]
[1731310109378,46.51489161,206.69,206.6,17.07489161]
[1731310110989,46.51489161,206.69,206.61,20.0]
[1731310111386,46.51489161,206.67,206.5,0.1]
[1731310111576,6.4092,206.68,206.57,17.57489161]
[1731310111577,46.51489161,206.65,206.57,17.57489161]
[1731310112104,46.51489161,206.65,206.58,17.57489161]
[1731310112772,46.51489161,206.65,206.51,2.09446398]
[1731310112969,46.51489161,206.63,206.54,17.57489161]
[1731310113375,46.51489161,206.63,206.56,17.57489161]
[1731310114091,17.57489161,206.58,206.47,2.10906861]
[1731310114301,17.57489161,206.58,206.49,17.57489161]
[1731310114797,46.51489161,206.6,206.51,17.57489161]
[1731310114997,17.57489161,206.61,206.53,17.57489161]
[1731310115367,24.21649161,206.63,206.55,17.57489161]
[1731310115574,17.57489161,206.61,206.53,17.57489161]
[1731310115782,17.57489161,206.59,206.51,17.57489161]
[1731310116376,17.57489161,206.57,206.45,16.4835]
[1731310116698,17.57489161,206.57,206.42,11.07040154]
[1731310116699,17.57489161,206.55,206.47,17.57489161]
[1731310117385,17.57489161,206.51,206.43,17.57489161]
[1731310118591,17.57489161,206.51,206.44,20.0]
[1731310118991,17.57489161,206.49,206.41,17.57489161]
[1731310119375,28.94,206.51,206.43,17.57489161]
[1731310119376,17.57489161,206.51,206.43,17.57489161]
[1731310119796,17.57489161,206.51,206.42,0.12549]
[1731310119983,17.57489161,206.51,206.42,17.70038161]
[1731310120184,17.57489161,206.51,206.45,17.57489161]
[1731310120383,15.0711,206.59,206.42,0.22549]
[1731310120384,17.57489161,206.57,206.5,20.0]
[1731310120783,15.0711,206.59,206.44,0.1]
[1731310120784,32.64599161,206.59,206.52,20.0]
[1731310120991,17.57489161,206.57,206.52,20.0]
[1731310121503,17.57489161,206.57,206.5,20.0]
[1731310121717,6.0412,206.53,206.38,0.1]
[1731310122003,6.0412,206.53,206.46,0.12549]
[1731310122694,6.0412,206.53,206.47,17.57489161]
[1731310122884,6.0412,206.53,206.5,20.0]
[1731310123085,28.15568015,206.57,206.5,20.0]
[1731310125405,6.513,206.58,206.52,20.0]